bitfinex/quotes_BTCUSD_20240821
["timestamp","ask_amount","ask_price","bid_price","bid_amount"]
[1724247044110,0.006822,59547.0,59546.0,1.88475707]
[1724247044111,0.001822,59547.0,59546.0,1.88475707]
[1724247044357,0.001822,59547.0,59546.0,1.88374917]
[1724247044562,0.007822,59547.0,59546.0,0.6526124]
[1724247044766,0.007822,59547.0,59546.0,0.1488014]
[1724247044971,0.001822,59547.0,59546.0,0.1488014]
[1724247045414,0.002822,59547.0,59546.0,0.2580384]
[1724247045631,0.002822,59547.0,59546.0,0.5939124]
[1724247045807,0.002822,59547.0,59546.0,0.2580384]
[1724247046060,0.002822,59547.0,59546.0,0.5939124]
[1724247046470,0.002822,59547.0,59546.0,0.9297864]
[1724247046937,0.002822,59547.0,59546.0,1.42966338]
[1724247047173,0.002822,59547.0,59546.0,1.49226338]
[1724247047904,0.002822,59547.0,59546.0,0.9923864]
[1724247048149,0.002822,59547.0,59546.0,0.6565124]
[1724247048636,0.002822,59547.0,59546.0,0.9923864]
[1724247048874,0.002822,59547.0,59546.0,1.49226338]
[1724247049628,0.02915353,59547.0,59546.0,1.49226338]
[1724247049864,0.02915353,59547.0,59546.0,1.49326338]
[1724247050270,0.02915353,59547.0,59546.0,1.49226338]
[1724247053766,0.02915353,59547.0,59546.0,0.9923864]
[1724247056212,0.02915353,59547.0,59546.0,1.56851759]
[1724247056475,0.02915353,59547.0,59546.0,2.35217446]
[1724247056745,0.000822,59557.0,59546.0,2.35217446]
[1724247056746,0.000822,59557.0,59556.0,0.920245]
[1724247056986,0.000822,59557.0,59556.0,2.31562299]
[1724247057229,0.000822,59557.0,59556.0,2.51562257]
[1724247057470,0.000822,59557.0,59556.0,2.14428952]
[1724247057713,0.000822,59557.0,59556.0,2.19352017]
[1724247058456,0.000822,59557.0,59556.0,2.14328952]
[1724247058710,0.000822,59557.0,59556.0,1.85258952]
[1724247058966,0.001822,59557.0,59556.0,1.85258952]
[1724247059204,0.000822,59557.0,59556.0,1.90082017]
[1724247059448,0.000822,59557.0,59556.0,1.85058952]
[1724247059957,0.001822,59557.0,59556.0,1.85758952]
[1724247060379,0.001822,59557.0,59556.0,1.85958952]
[1724247060894,0.002822,59557.0,59556.0,1.34476854]
[1724247061329,0.002822,59557.0,59556.0,0.94705054]
[1724247062440,0.002822,59557.0,59556.0,1.28286854]
[1724247062647,0.002822,59557.0,59556.0,1.50947152]
[1724247062861,0.002822,59557.0,59556.0,1.86928952]
[1724247063071,0.000823,59568.0,59567.0,1.176146]
[1724247063285,0.000823,59568.0,59567.0,1.48264898]
[1724247063541,0.000823,59568.0,59567.0,1.49335911]
[1724247063827,0.000823,59568.0,59567.0,1.49535911]
[1724247064039,0.000823,59568.0,59567.0,2.69402099]
[1724247064476,0.001823,59568.0,59567.0,2.70002099]
[1724247064679,0.002823,59568.0,59567.0,2.70802099]
[1724247064867,0.001823,59568.0,59567.0,2.70202099]
[1724247065106,0.000823,59568.0,59567.0,2.69402099]
[1724247065369,0.001823,59568.0,59567.0,2.70800773]
[1724247065619,0.001823,59568.0,59567.0,2.7831453]
[1724247065847,0.001823,59568.0,59567.0,2.40695268]
[1724247066108,0.001823,59568.0,59567.0,2.33081511]
[1724247066330,0.001823,59568.0,59567.0,2.23081511]
[1724247066572,0.001823,59568.0,59567.0,2.24581511]
[1724247067665,0.001823,59568.0,59567.0,2.24781511]
[1724247068116,0.001823,59568.0,59567.0,2.695174]
[1724247068332,0.02632036,59584.0,59583.0,0.839165]
[1724247068555,0.49229154,59588.0,59587.0,0.503464]
[1724247068817,0.0271398,59589.0,59588.0,0.167819]
[1724247069023,0.0271398,59589.0,59588.0,0.503457]
[1724247069229,0.0271398,59589.0,59588.0,0.93029123]
[1724247069861,0.0271398,59589.0,59588.0,1.26592923]
[1724247070066,0.000822,59589.0,59588.0,1.26592923]
[1724247070486,0.000822,59589.0,59588.0,1.63162923]
[1724247070929,0.000822,59589.0,59588.0,1.79563221]
[1724247071770,0.000822,59589.0,59588.0,2.19827021]
[1724247071987,0.02631651,59596.0,59588.0,2.22027021]
[1724247072203,0.02631651,59596.0,59595.0,1.284595]
[1724247072407,0.02631651,59596.0,59595.0,1.84739598]
[1724247072620,0.000822,59603.0,59602.0,0.838897]
[1724247072826,0.000822,59603.0,59602.0,1.78325898]
[1724247073033,0.000822,59603.0,59602.0,1.7936251]
[1724247073873,0.000822,59603.0,59602.0,2.1939841]
[1724247074081,0.000822,59603.0,59602.0,2.2189841]
[1724247074294,0.000822,59603.0,59602.0,2.2621203]
[1724247074569,0.000822,59603.0,59602.0,2.2641203]
[1724247074810,0.000822,59603.0,59602.0,1.36286312]
[1724247075227,0.000822,59603.0,59602.0,0.51870412]
[1724247075447,0.244198,59603.0,59602.0,0.01036612]
[1724247075655,0.244198,59603.0,59602.0,0.02336612]
[1724247075861,0.076422,59603.0,59599.0,0.167786]
[1724247076070,0.076422,59603.0,59597.0,0.335586]
[1724247076071,0.167782,59602.0,59597.0,0.167791]
[1724247076291,0.076422,59603.0,59600.0,0.01036305]
[1724247076519,0.076422,59603.0,59589.0,0.0828]
[1724247076520,0.076422,59603.0,59592.0,0.335612]
[1724247076726,0.335598,59596.0,59580.0,0.0759]
[1724247076971,0.0615,59598.0,59581.0,0.16735893]
[1724247077206,0.0615,59598.0,59581.0,0.16835893]
[1724247077207,0.167796,59597.0,59581.0,0.16835893]
[1724247077420,0.167796,59597.0,59588.0,0.167817]
[1724247077421,0.167806,59593.0,59588.0,0.167817]
[1724247077714,0.167806,59593.0,59578.0,0.0653]
[1724247077715,0.335618,59592.0,59575.0,0.0814]
[1724247077998,0.0615,59598.0,59580.0,0.33568]
[1724247077999,0.415623,59591.0,59580.0,0.33568]
[1724247078271,0.16782,59588.0,59584.0,0.167829]
[1724247078537,0.08,59591.0,59590.0,0.167813]
[1724247078746,0.0263142,59592.0,59590.0,0.167813]
[1724247078965,0.0263142,59592.0,59591.0,0.16781]
[1724247079175,0.0263142,59592.0,59589.0,0.167815]
[1724247079390,0.0263142,59592.0,59588.0,0.336635]
[1724247079607,0.0263142,59592.0,59591.0,0.503431]
[1724247079830,0.0263142,59592.0,59591.0,0.839052]
[1724247080460,0.0263142,59592.0,59591.0,1.174673]
[1724247080665,0.0263142,59592.0,59591.0,0.839052]
[1724247080883,0.0283142,59592.0,59591.0,0.839052]
[1724247081326,0.0263142,59592.0,59591.0,0.839052]
[1724247081549,0.0263142,59592.0,59591.0,0.17181]
[1724247081777,0.0263142,59592.0,59591.0,0.17581]
[1724247082220,0.0263142,59592.0,59591.0,0.008]
[1724247082447,0.1066142,59592.0,59588.0,0.335637]
[1724247082685,0.1066142,59592.0,59590.0,0.167812]
[1724247083332,0.1066142,59592.0,59591.0,0.16781]
[1724247083758,0.1076142,59592.0,59591.0,0.16781]
[1724247084015,0.0273142,59592.0,59591.0,0.839052]
[1724247084220,0.0263142,59592.0,59591.0,0.839052]
[1724247084439,0.0263142,59592.0,59591.0,0.16781]
[1724247084647,0.0273142,59592.0,59591.0,0.503431]
[1724247085081,0.0273142,59592.0,59591.0,0.16781]
[1724247085294,0.0273142,59592.0,59589.0,0.335627]
[1724247085493,0.0263142,59592.0,59589.0,0.335627]
[1724247085709,0.0263142,59592.0,59589.0,0.01098486]
[1724247085924,0.167813,59590.0,59589.0,0.01098486]
[1724247086137,0.167819,59588.0,59584.0,0.167828]
[1724247086364,0.1451,59591.0,59584.0,0.335658]
[1724247086578,0.1451,59591.0,59575.0,0.065]
[1724247086579,0.1451,59591.0,59588.0,0.335633]
[1724247086782,0.1451,59591.0,59580.0,0.00435628]
[1724247086783,0.1451,59591.0,59586.0,0.335644]
[1724247086983,0.1451,59591.0,59589.0,0.01098486]
[1724247087201,0.1451,59591.0,59576.0,0.16400298]
[1724247087420,0.16782,59588.0,59584.0,0.167829]
[1724247087643,0.1451,59591.0,59585.0,0.00335626]
[1724247087908,0.0263142,59592.0,59591.0,0.503431]
[1724247088747,0.1941222,59592.0,59588.0,0.167817]
[1724247088962,0.1941222,59592.0,59586.0,0.167823]
[1724247088963,0.167813,59590.0,59586.0,0.167823]
[1724247089226,0.0263142,59592.0,59588.0,0.167818]
[1724247089431,0.167811,59591.0,59587.0,0.167819]
[1724247089641,0.167811,59591.0,59588.0,0.167818]
[1724247089859,0.079,59591.0,59584.0,0.001]
[1724247090313,0.167813,59590.0,59586.0,0.167823]
[1724247090721,0.167817,59589.0,59585.0,0.167827]
[1724247090943,0.167817,59589.0,59575.0,0.4307]
[1724247090944,0.335652,59586.0,59575.0,0.3657]
[1724247091201,0.16400298,59589.0,59561.0,0.001]
[1724247091202,0.063,59583.0,59563.0,0.0776]
[1724247091443,0.0789,59573.0,59569.0,0.503609]
[1724247091650,0.0789,59573.0,59563.0,0.0776]
[1724247091651,0.0789,59573.0,59571.0,0.167865]
[1724247091880,0.0789,59573.0,59566.0,0.335762]
[1724247092091,0.36201571,59579.0,59565.0,0.001]
[1724247092092,0.0789,59578.0,59565.0,0.001]
[1724247092302,0.167854,59576.0,59566.0,0.00335708]
[1724247092520,0.167859,59574.0,59571.0,0.167865]
[1724247092730,0.1441,59575.0,59563.0,0.335773]
[1724247092949,0.35326375,59575.0,59556.0,0.0009042]
[1724247093168,0.35326375,59575.0,59561.0,0.335788]
[1724247093169,0.419041,59570.0,59561.0,0.335788]
[1724247093376,0.0833,59570.0,59562.0,0.335782]
[1724247093584,0.02632542,59571.0,59569.0,0.168871]
[1724247093804,0.02632542,59571.0,59569.0,0.001]
[1724247094239,0.02632542,59571.0,59568.0,0.167873]
[1724247094459,0.006,59570.0,59568.0,0.167873]
[1724247094867,0.006,59570.0,59569.0,0.167872]
[1724247095077,0.02632542,59571.0,59569.0,0.167872]
[1724247095284,0.03032542,59571.0,59569.0,0.167872]
[1724247095491,0.03032542,59571.0,59570.0,0.167869]
[1724247095905,0.03032542,59571.0,59570.0,0.503608]
[1724247096113,0.03032542,59571.0,59570.0,0.839347]
[1724247096319,0.03032542,59571.0,59570.0,1.175086]
[1724247096733,0.02632542,59571.0,59570.0,1.175086]
[1724247096939,0.02632542,59571.0,59570.0,1.33908898]
[1724247097200,0.0664,59583.0,59581.0,0.167838]
[1724247097454,0.02631935,59582.0,59581.0,0.167838]
[1724247097695,0.02631935,59582.0,59579.0,0.167843]
[1724247098646,0.03431935,59582.0,59581.0,0.001]
[1724247098852,0.03431935,59582.0,59581.0,0.168838]
[1724247099062,0.03431935,59582.0,59581.0,1.175869]
[1724247099915,0.03431935,59582.0,59581.0,1.176869]
[1724247100122,0.03431935,59582.0,59581.0,1.175869]
[1724247100572,0.02631935,59582.0,59581.0,1.34087198]
[1724247100971,0.02631935,59582.0,59581.0,1.40627198]
[1724247101180,0.03431935,59582.0,59581.0,1.50377198]
[1724247101386,0.03431935,59582.0,59581.0,1.50877198]
[1724247101840,0.02631935,59582.0,59581.0,1.52042411]
[1724247102900,0.02631935,59582.0,59581.0,1.51542411]
[1724247103115,0.02631935,59582.0,59581.0,1.52442411]
[1724247103337,0.02731935,59582.0,59581.0,1.53042411]
[1724247103751,0.02631935,59582.0,59581.0,1.52442411]
[1724247104171,0.02731935,59582.0,59581.0,1.53242411]
[1724247104646,0.02711741,59582.0,59581.0,1.01224413]
[1724247105068,0.02711741,59582.0,59581.0,0.02865213]
[1724247105498,0.02711741,59582.0,59581.0,0.19649013]
[1724247108117,0.02711741,59582.0,59581.0,0.02865213]
[1724247108118,0.86629441,59582.0,59581.0,0.02865213]
[1724247108359,0.86629441,59582.0,59566.0,0.0009042]
[1724247108360,0.0752,59567.0,59566.0,0.0009042]
[1724247108854,0.243078,59567.0,59566.0,0.0009042]
[1724247109979,0.0657,59568.0,59566.0,0.0009042]
[1724247110186,0.0657,59568.0,59566.0,0.0149042]
[1724247110187,0.167876,59568.0,59566.0,0.0149042]
[1724247110619,0.001,59567.0,59566.0,0.0289042]
[1724247111048,0.167876,59568.0,59566.0,0.0009042]
[1724247111479,0.175876,59568.0,59566.0,0.0019042]
[1724247112385,0.008,59568.0,59567.0,0.83939]
[1724247112624,0.008,59568.0,59566.0,0.0019042]
[1724247112625,0.167878,59567.0,59566.0,0.0019042]
[1724247112841,0.244676,59568.0,59566.0,0.0009042]
[1724247113048,0.004,59567.0,59566.0,0.0029042]
[1724247113496,0.0818,59568.0,59566.0,0.0019042]
[1724247113706,0.004,59568.0,59566.0,0.0009042]
[1724247113959,0.167875,59569.0,59566.0,0.0009042]
[1724247114170,0.004,59567.0,59566.0,0.0009042]
[1724247114371,0.008,59567.0,59566.0,0.1687852]
[1724247114583,0.0768,59573.0,59566.0,0.0009042]
[1724247114584,0.335735,59571.0,59566.0,0.0009042]
[1724247114836,0.167878,59567.0,59566.0,0.0009042]
[1724247115081,0.167875,59568.0,59566.0,0.0009042]
[1724247115327,0.167878,59567.0,59566.0,0.0009042]
[1724247115574,1.14829298,59567.0,59566.0,0.0009042]
[1724247115820,2.03463428,59567.0,59566.0,0.0009042]
[1724247116559,2.03563428,59567.0,59566.0,0.0019042]
[1724247116777,0.988772,59547.0,59546.0,0.0009042]
[1724247117007,1.15277498,59547.0,59546.0,0.0009042]
[1724247117227,1.58864398,59547.0,59546.0,0.0009042]
[1724247117448,1.66895233,59547.0,59546.0,0.0009042]
[1724247118949,1.66995233,59547.0,59546.0,0.0009042]
[1724247119158,1.67995233,59547.0,59546.0,0.0019042]
[1724247119360,1.68595233,59547.0,59546.0,0.0009042]
[1724247119786,1.68595233,59547.0,59520.0,0.0081845]
[1724247119787,0.336015,59521.0,59520.0,0.0081845]
[1724247119995,1.48285498,59521.0,59520.0,0.0081845]
[1724247120390,1.48285498,59521.0,59511.0,0.0002]
[1724247120391,0.504099,59512.0,59511.0,0.0002]
[1724247120605,1.51843398,59512.0,59511.0,0.0002]
[1724247120834,1.58023398,59512.0,59511.0,0.0002]
[1724247121240,1.73835738,59512.0,59511.0,0.0002]
[1724247121440,1.24416798,59512.0,59511.0,0.0002]
[1724247121851,1.58023398,59512.0,59511.0,0.0002]
[1724247122467,1.58023398,59512.0,59496.0,0.27427164]
[1724247122468,0.16805,59506.0,59496.0,0.27427164]
[1724247122681,1.08245298,59506.0,59496.0,0.27427164]
[1724247122888,1.51855298,59506.0,59496.0,0.27427164]
[1724247123710,1.51855298,59506.0,59491.0,0.0002]
[1724247123711,0.168089,59492.0,59491.0,0.0002]
[1724247123920,1.00444998,59492.0,59491.0,0.0002]
[1724247124122,1.10444998,59492.0,59491.0,0.0002]
[1724247124327,1.44062898,59492.0,59491.0,0.0002]
[1724247124750,0.504438,59472.0,59471.0,0.0002]
[1724247124967,1.12193298,59472.0,59471.0,0.0002]
[1724247125173,0.84454098,59472.0,59471.0,0.0002]
[1724247125375,0.268146,59472.0,59471.0,0.0002]
[1724247125589,0.604438,59472.0,59471.0,0.0002]
[1724247125795,1.10473298,59472.0,59471.0,0.0002]
[1724247126432,0.76844098,59472.0,59471.0,0.0002]
[1724247126643,0.78244098,59472.0,59471.0,0.0002]
[1724247126845,1.11873298,59472.0,59471.0,0.0002]
[1724247127054,1.13273298,59472.0,59471.0,0.0002]
[1724247127266,0.76844098,59472.0,59471.0,0.0002]
[1724247127480,1.10473298,59472.0,59471.0,0.0002]
[1724247127687,1.11873298,59472.0,59471.0,0.0002]
[1724247127887,0.78244098,59472.0,59471.0,0.0002]
[1724247128107,1.64730708,59472.0,59471.0,0.0002]
[1724247128341,1.64630708,59472.0,59471.0,0.0002]
[1724247129161,2.36329908,59472.0,59471.0,0.0002]
[1724247129367,2.37229908,59472.0,59471.0,0.0002]
[1724247129576,2.48445973,59472.0,59471.0,0.0002]
[1724247129792,0.983312,59452.0,59451.0,0.009242]
[1724247129995,0.16400298,59452.0,59451.0,0.009242]
[1724247130204,0.26400298,59452.0,59451.0,0.009242]
[1724247130412,0.0804,59458.0,59451.0,0.177447]
[1724247130621,0.0818,59464.0,59451.0,0.009242]
[1724247130833,0.16400298,59463.0,59455.0,0.168194]
[1724247131034,0.16400298,59463.0,59451.0,0.009242]
[1724247131035,0.014,59452.0,59451.0,0.177447]
[1724247131235,0.16400298,59463.0,59455.0,0.168193]
[1724247131508,0.16400298,59463.0,59453.0,0.336397]
[1724247131509,0.16400298,59463.0,59453.0,0.168198]
[1724247131709,0.16400298,59463.0,59451.0,0.009242]
[1724247131710,0.16818,59460.0,59451.0,0.009242]
[1724247131879,0.0263745,59466.0,59451.0,0.009242]
[1724247132115,0.0263745,59466.0,59454.0,0.336389]
[1724247132327,0.0781,59473.0,59455.0,0.0815]
[1724247132502,0.16400298,59473.0,59455.0,0.0845]
[1724247132704,0.16400298,59473.0,59467.0,0.168159]
[1724247132902,0.16400298,59473.0,59455.0,0.0815]
[1724247132903,0.33214898,59473.0,59464.0,0.168168]
[1724247133133,0.02637093,59475.0,59458.0,0.336369]
[1724247133134,0.336301,59471.0,59458.0,0.336369]
[1724247133335,0.168156,59469.0,59461.0,0.168176]
[1724247133545,0.16400298,59468.0,59460.0,0.33636]
[1724247133750,0.16400298,59468.0,59451.0,0.009242]
[1724247133751,0.0815,59467.0,59451.0,0.009242]
[1724247134103,0.063,59465.0,59452.0,0.168201]
[1724247134312,0.16818,59460.0,59454.0,0.168196]
[1724247134521,0.16400298,59459.0,59451.0,0.009242]
[1724247134808,0.168195,59455.0,59451.0,0.009242]
[1724247135015,0.01445,59464.0,59451.0,0.009242]
[1724247135016,0.16400298,59454.0,59451.0,0.009242]
[1724247135225,0.504607,59452.0,59451.0,0.009242]
[1724247135438,0.66860998,59452.0,59451.0,0.009242]
[1724247135653,0.33220498,59452.0,59451.0,0.009242]
[1724247135871,1.06771498,59452.0,59451.0,0.009242]
[1724247136128,1.06671498,59452.0,59451.0,0.009242]
[1724247136609,0.73030998,59452.0,59451.0,0.009242]
[1724247136839,0.16400298,59452.0,59451.0,0.009242]
[1724247137308,0.17700298,59452.0,59451.0,0.009242]
[1724247137517,0.17700298,59452.0,59424.0,0.032]
[1724247137518,0.16400298,59452.0,59443.0,0.336455]
[1724247137734,0.16400298,59452.0,59441.0,0.336465]
[1724247137735,0.168218,59447.0,59441.0,0.336465]
[1724247137943,0.168218,59447.0,59431.0,0.0002]
[1724247137944,0.16400298,59451.0,59445.0,0.336441]
[1724247138164,0.168208,59450.0,59446.0,0.168218]
[1724247138617,0.168208,59450.0,59444.0,0.33645]
[1724247138823,0.16400298,59449.0,59442.0,0.0827]
[1724247139024,0.336428,59448.0,59441.0,0.504695]
[1724247139243,0.168233,59442.0,59435.0,0.3365]
[1724247139449,0.0793,59446.0,59439.0,0.168239]
[1724247139450,0.08016023,59446.0,59439.0,0.168239]
[1724247139679,0.08016023,59446.0,59432.0,0.0819]
[1724247139680,0.06,59444.0,59432.0,0.0819]
[1724247139915,0.168232,59442.0,59435.0,0.336502]
[1724247140124,0.33223498,59442.0,59438.0,0.168242]
[1724247140341,0.16400298,59442.0,59438.0,0.168242]
[1724247140561,0.41660323,59446.0,59431.0,0.0002]
[1724247140562,0.16400298,59441.0,59431.0,0.0002]
[1724247140774,0.16400298,59441.0,59427.0,0.0759]
[1724247140775,0.16400298,59441.0,59425.0,0.00011]
[1724247140776,0.652429,59426.0,59425.0,0.00011]
[1724247140985,1.15298498,59426.0,59425.0,0.00011]
[1724247141213,1.25298498,59426.0,59425.0,0.00011]
[1724247141643,1.59053798,59426.0,59425.0,0.00011]
[1724247141860,2.29679098,59426.0,59425.0,0.00011]
[1724247142954,1.44279821,59426.0,59425.0,0.0010153]
[1724247143213,2.00053103,59426.0,59425.0,0.0010153]
[1724247143455,2.09363103,59426.0,59425.0,0.0010153]
[1724247143697,2.43018403,59426.0,59425.0,0.0010153]
[1724247143914,2.43018403,59426.0,59411.0,0.009242]
[1724247143915,1.320712,59412.0,59411.0,0.009242]
[1724247144161,0.168321,59410.0,59409.0,0.002662]
[1724247144413,1.77989598,59410.0,59409.0,0.002662]
[1724247144616,1.10560998,59410.0,59409.0,0.002662]
[1724247144820,1.23032098,59410.0,59409.0,0.002662]
[1724247145096,0.43232398,59410.0,59409.0,0.002662]
[1724247145293,0.1,59410.0,59409.0,0.002662]
[1724247145498,0.336619,59415.0,59409.0,0.002662]
[1724247145703,0.33232398,59410.0,59409.0,0.002662]
[1724247145904,1.10560998,59410.0,59409.0,0.002662]
[1724247146111,1.44225298,59410.0,59409.0,0.002662]
[1724247146325,1.10560998,59410.0,59409.0,0.002662]
[1724247146953,1.52345298,59410.0,59409.0,0.002662]
[1724247147156,1.52345298,59410.0,59409.0,0.003662]
[1724247147157,1.60045298,59410.0,59409.0,0.003662]
[1724247147399,1.96009598,59410.0,59409.0,0.003662]
[1724247147599,1.96009598,59410.0,59398.0,0.009053]
[1724247147600,1.178471,59399.0,59398.0,0.009053]
[1724247147812,1.44247398,59399.0,59398.0,0.009053]
[1724247148033,1.44247398,59399.0,59377.0,0.336826]
[1724247148034,1.44247398,59399.0,59365.0,0.009053]
[1724247148035,0.311029,59372.0,59365.0,0.009053]
[1724247148239,0.1442474,59398.0,59369.0,0.49229154]
[1724247148240,0.001,59389.0,59369.0,0.49229154]
[1724247148483,0.1,59398.0,59370.0,0.00336848]
[1724247148694,0.1,59398.0,59369.0,0.49229154]
[1724247148695,0.336726,59396.0,59379.0,0.168408]
[1724247148932,0.0816,59397.0,59372.0,0.09178923]
[1724247148933,0.0816,59397.0,59372.0,0.08842075]
[1724247149140,0.16400298,59395.0,59380.0,0.01133071]
[1724247149348,0.16400298,59395.0,59372.0,0.08036825]
[1724247149557,0.16400298,59395.0,59380.0,0.168404]
[1724247149558,0.168383,59389.0,59380.0,0.168404]
[1724247149763,0.1,59388.0,59381.0,0.0649]
[1724247150008,0.168401,59382.0,59381.0,0.01131946]
[1724247150247,0.168401,59382.0,59372.0,0.077]
[1724247150249,0.60080498,59382.0,59372.0,0.077]
[1724247150443,0.60080498,59382.0,59364.0,0.336901]
[1724247150444,0.168429,59372.0,59364.0,0.0814]
[1724247150653,0.34460298,59381.0,59364.0,0.0814]
[1724247150866,0.1,59381.0,59366.0,0.00336865]
[1724247151067,0.0806,59403.0,59380.0,0.0814]
[1724247151290,0.16400298,59402.0,59380.0,0.0814]
[1724247151520,0.014,59389.0,59380.0,0.0824]
[1724247151729,0.014,59389.0,59381.0,0.01468736]
[1724247151925,0.0806,59403.0,59381.0,0.01468736]
[1724247151926,0.0806,59411.0,59389.0,0.33676]
[1724247152132,0.0806,59411.0,59387.0,0.0814]
[1724247152133,0.16400298,59402.0,59387.0,0.0814]
[1724247152536,0.336695,59401.0,59387.0,0.0814]
[1724247152742,0.336738,59394.0,59387.0,0.0814]
[1724247152958,0.16400298,59400.0,59387.0,0.0814]
[1724247153164,0.16400298,59400.0,59387.0,0.249786]
[1724247153165,0.168365,59395.0,59387.0,0.249786]
[1724247153372,0.168365,59395.0,59379.0,0.003]
[1724247153373,0.16400298,59394.0,59375.0,0.0778]
[1724247153572,0.26400298,59394.0,59375.0,0.0778]
[1724247153775,0.168405,59381.0,59380.0,0.001]
[1724247154002,0.505213,59381.0,59380.0,0.001]
[1724247154209,0.336804,59382.0,59375.0,0.0778]
[1724247154417,0.26400298,59394.0,59376.0,0.168417]
[1724247154418,0.336787,59385.0,59376.0,0.168417]
[1724247154619,0.336787,59385.0,59375.0,0.0778]
[1724247154620,0.168388,59387.0,59375.0,0.0778]
[1724247154828,0.16400298,59393.0,59379.0,0.168408]
[1724247154829,0.16839,59386.0,59379.0,0.168408]
[1724247155075,0.336741,59393.0,59376.0,0.33683]
[1724247155276,0.336678,59404.0,59389.0,0.0801]
[1724247155508,0.0825,59407.0,59389.0,0.0801]
[1724247155509,0.168368,59394.0,59389.0,0.0801]
[1724247155717,0.336725,59396.0,59389.0,0.0801]
[1724247155927,0.336711,59399.0,59390.0,0.0614]
[1724247156133,0.33673,59395.0,59390.0,0.0614]
[1724247156336,0.16400298,59398.0,59390.0,0.0614]
[1724247156337,0.336751,59391.0,59390.0,0.0614]
[1724247156576,0.168375,59391.0,59390.0,0.0614]
[1724247156781,0.336709,59399.0,59390.0,0.0614]
[1724247156982,0.0756,59418.0,59397.0,0.168356]
[1724247157230,0.505012,59405.0,59398.0,0.168355]
[1724247157433,0.16400298,59415.0,59403.0,0.16834]
[1724247157652,0.168335,59405.0,59404.0,0.0826]
[1724247157942,0.66900898,59405.0,59404.0,0.0826]
[1724247158144,0.66900898,59405.0,59395.0,0.0826]
[1724247158145,0.505084,59396.0,59395.0,0.0826]
[1724247158354,0.002,59416.0,59395.0,0.0826]
[1724247158356,0.16400298,59404.0,59395.0,0.250963]
[1724247158559,0.180337,59405.0,59398.0,0.169354]
[1724247158769,0.012,59405.0,59401.0,0.168346]
[1724247158999,0.16400298,59417.0,59402.0,0.168344]
[1724247159000,0.168328,59408.0,59402.0,0.168344]
[1724247159215,0.014,59405.0,59404.0,0.001]
[1724247159632,0.014,59405.0,59404.0,0.01253622]
[1724247159862,0.014,59405.0,59404.0,0.001]
[1724247160052,0.014,59405.0,59404.0,0.18087422]
[1724247160270,0.014,59405.0,59404.0,0.586015]
[1724247160472,0.16400298,59417.0,59404.0,0.15723622]
[1724247160473,0.336627,59413.0,59404.0,0.15723622]
[1724247160683,0.336645,59410.0,59404.0,0.15723622]
[1724247160887,0.336645,59410.0,59404.0,0.01153622]
[1724247160888,0.512006,59405.0,59404.0,0.01153622]
[1724247161111,1.01267998,59405.0,59404.0,0.01153622]
[1724247161310,0.16400298,59405.0,59392.0,0.0657]
[1724247161503,0.175337,59405.0,59404.0,0.001]
[1724247161707,0.007,59405.0,59403.0,0.08]
[1724247161914,0.007,59405.0,59404.0,0.168338]
[1724247162116,0.014,59405.0,59404.0,0.51794517]
[1724247162326,0.014,59405.0,59404.0,0.18126817]
[1724247162948,0.182335,59405.0,59404.0,0.01293017]
[1724247163368,1.01967998,59405.0,59404.0,0.01293017]
[1724247163623,1.00567998,59405.0,59404.0,0.01193017]
[1724247163829,1.00567998,59405.0,59391.0,0.08]
[1724247163830,0.168368,59394.0,59391.0,0.08]
[1724247164040,0.168359,59397.0,59391.0,0.08]
[1724247164216,0.168368,59394.0,59393.0,0.01201585]
[1724247164473,0.505102,59394.0,59393.0,0.01201585]
[1724247164685,0.505102,59394.0,59391.0,0.08]
[1724247164686,0.168368,59394.0,59391.0,0.08]
[1724247165096,0.16400298,59404.0,59391.0,0.08]
[1724247165097,0.16400298,59404.0,59392.0,0.01302709]
[1724247165303,0.16837,59393.0,59392.0,0.01302709]
[1724247165491,1.34259298,59393.0,59392.0,0.01202709]
[1724247165758,0.26837,59393.0,59392.0,0.00801806]
[1724247165973,0.1,59393.0,59387.0,0.0009064]
[1724247166421,0.168381,59389.0,59388.0,0.00805613]
[1724247166637,0.168377,59391.0,59388.0,0.00805613]
[1724247166850,0.168378,59390.0,59388.0,0.00805613]
[1724247167062,0.168381,59389.0,59388.0,0.00805613]
[1724247167270,0.336721,59397.0,59388.0,0.00805613]
[1724247167476,0.1395,59408.0,59388.0,0.00805613]
[1724247167477,0.1,59403.0,59392.0,0.168372]
[1724247167679,0.005,59393.0,59392.0,0.168372]
[1724247167884,0.336696,59401.0,59393.0,0.168368]
[1724247167885,0.168353,59399.0,59393.0,0.168368]
[1724247168096,0.16836,59397.0,59390.0,0.336756]
[1724247168314,0.1,59403.0,59392.0,0.336742]
[1724247168508,0.076,59408.0,59399.0,0.076]
[1724247168509,0.168341,59404.0,59399.0,0.076]
[1724247168714,0.168342,59403.0,59399.0,0.076]
[1724247168947,0.26400298,59407.0,59400.0,0.168349]
[1724247169141,0.168333,59406.0,59400.0,0.0623]
[1724247169354,0.168333,59407.0,59400.0,0.230649]
[1724247169568,0.168333,59407.0,59401.0,0.168346]
[1724247169829,0.336648,59410.0,59400.0,0.0623]
[1724247170096,0.0801,59419.0,59390.0,0.336754]
[1724247170097,0.168354,59399.0,59392.0,0.077]
[1724247170363,0.16400298,59399.0,59392.0,0.077]
[1724247170533,0.168359,59397.0,59392.0,0.077]
[1724247171003,0.336674,59405.0,59393.0,0.168368]
[1724247171215,0.014,59410.0,59400.0,0.169349]
[1724247171424,0.014,59410.0,59400.0,0.001]
[1724247171425,0.33666,59407.0,59400.0,0.001]
[1724247171626,0.168342,59403.0,59398.0,0.168354]
[1724247171835,0.006,59397.0,59392.0,0.078]
[1724247172047,0.006,59397.0,59395.0,0.168364]
[1724247172252,0.006,59397.0,59392.0,0.078]
[1724247172463,0.006,59397.0,59393.0,0.168368]
[1724247172676,0.006,59397.0,59396.0,0.505084]